bitfinex/quotes_SOLUSD_20250306
["timestamp","ask_amount","ask_price","bid_price","bid_amount"]
[1741268806033,54.35639499,147.72,147.66,0.14216157]
[1741268806843,66.70349499,147.73,147.66,54.49855656]
[1741268807053,66.70349499,147.73,147.68,0.14216157]
[1741268807515,10.3471,147.73,147.67,54.35639499]
[1741268807719,10.3471,147.73,147.69,0.14216157]
[1741268807923,10.3471,147.73,147.72,54.49855656]
[1741268808239,10.3471,147.73,147.72,0.14216157]
[1741268808435,10.3471,147.73,147.72,312.0]
[1741268808621,10.3471,147.73,147.68,0.14216157]
[1741268808821,10.3471,147.73,147.69,0.14216157]
[1741268809024,3.219,147.76,147.69,0.14216157]
[1741268809222,3.219,147.76,147.69,20.0]
[1741268809523,3.219,147.76,147.7,0.14216157]
[1741268809942,3.219,147.76,147.69,0.14216157]
[1741268810141,3.219,147.76,147.66,0.14216157]
[1741268810442,3.219,147.76,147.71,54.49855656]
[1741268811046,3.219,147.76,147.72,0.14216157]
[1741268811230,3.219,147.76,147.72,78.19195656]
[1741268811431,3.219,147.76,147.73,0.14216157]
[1741268811627,3.219,147.76,147.75,312.14216157]
[1741268811828,3.219,147.76,147.75,0.14216157]
[1741268812741,3.219,147.76,147.75,312.14216157]
[1741268812941,54.35639499,147.8,147.76,0.14216157]
[1741268813142,54.35639499,147.81,147.76,23.82916157]
[1741268813325,54.35639499,147.79,147.76,6.90986157]
[1741268813529,54.35639499,147.82,147.76,0.14216157]
[1741268813740,54.35639499,147.83,147.76,54.49855656]
[1741268814044,2.0,147.86,147.79,312.14216157]
[1741268814225,54.35639499,147.84,147.79,312.14216157]
[1741268814427,54.35639499,147.83,147.79,312.14216157]
[1741268814828,54.35639499,147.8,147.72,0.28432314]
[1741268815028,54.35639499,147.8,147.69,20.0]
[1741268815347,0.08268824,147.79,147.74,54.49855656]
[1741268815544,0.08268824,147.79,147.76,0.14216157]
[1741268815925,0.08268824,147.79,147.73,20.0]
[1741268816124,0.08268824,147.79,147.78,0.14216157]
[1741268816352,33.5749623,147.79,147.78,0.14216157]
[1741268816650,0.08268824,147.79,147.76,0.14216157]
[1741268816849,33.5749623,147.79,147.76,54.49855656]
[1741268817155,0.08268824,147.79,147.78,45.10209217]
[1741268817329,0.08268824,147.79,147.78,6.90896157]
[1741268817532,8.824e-05,147.79,147.78,54.49855656]
[1741268817925,8.824e-05,147.79,147.78,312.14216157]
[1741268818549,8.824e-05,147.79,147.78,366.64071813]
[1741268819252,8.824e-05,147.79,147.78,373.40751813]
[1741268819439,8.824e-05,147.79,147.78,61.40751813]
[1741268819632,8.824e-05,147.79,147.78,62.82765975]
[1741268820057,8.824e-05,147.79,147.78,62.68549818]
[1741268820241,8.824e-05,147.79,147.78,62.82765975]
[1741268820838,8.824e-05,147.79,147.78,357.82765975]
[1741268821149,0.03,147.88,147.79,0.28432314]
[1741268821342,0.03,147.88,147.85,0.14216157]
[1741268821538,54.35639499,147.87,147.81,0.14216157]
[1741268821748,54.35639499,147.86,147.81,0.14216157]
[1741268821946,0.03,147.88,147.81,0.14216157]
[1741268822146,0.03,147.88,147.8,54.49855656]
[1741268822650,0.03,147.88,147.8,17.05686157]
[1741268822838,19.61992033,147.87,147.8,71.41325656]
[1741268823358,2.0,147.67,147.63,20.343002]
[1741268823539,54.35639499,147.64,147.56,0.033]
[1741268823734,2.0,147.61,147.56,0.033]
[1741268823929,2.0,147.68,147.56,0.033]
[1741268824251,2.0,147.71,147.57,18.64964886]
[1741268824436,2.0,147.7,147.6,295.0]
[1741268824643,2.0,147.71,147.6,295.0]
[1741268825243,54.35639499,147.68,147.61,23.7111]
[1741268825440,54.35639499,147.68,147.62,120.86]
[1741268825637,54.35639499,147.68,147.62,83.47219311]
[1741268825837,19.38082256,147.65,147.64,0.14216157]
[1741268826141,2.256e-05,147.65,147.64,54.35639499]
[1741268826349,7.81748597,147.69,147.65,0.14216157]
[1741268826655,8.597e-05,147.69,147.68,54.49855656]
[1741268826859,8.597e-05,147.69,147.68,0.14216157]
[1741268827041,8.597e-05,147.69,147.54,50.21324235]
[1741268827042,2.0,147.49,147.42,0.033]
[1741268827354,0.14216157,147.54,147.43,33.30209909]
[1741268827545,1.78024146,147.54,147.43,33.93647866]
[1741268827864,35.71531442,147.68,147.45,33.49160317]
[1741268828060,35.71531442,147.68,147.43,33.93647866]
[1741268828359,18.64964886,147.54,147.49,54.35639499]
[1741268828563,1.05992559,147.53,147.49,54.35639499]
[1741268828748,18.64964886,147.52,147.49,54.35639499]
[1741268828934,1.05992559,147.51,147.49,54.35639499]
[1741268829138,1.05992559,147.54,147.5,0.14216157]
[1741268829447,1.05992559,147.64,147.5,0.14216157]
[1741268829846,18.79181043,147.63,147.5,0.14216157]
[1741268830040,54.35639499,147.57,147.5,0.14216157]
[1741268830352,54.35639499,147.55,147.5,0.14216157]
[1741268830549,54.35639499,147.54,147.49,6.813]
[1741268831263,54.35639499,147.56,147.5,0.14216157]
[1741268831758,54.35639499,147.53,147.5,0.14216157]
[1741268831947,54.35639499,147.51,147.49,0.033]
[1741268832148,18.64964886,147.5,147.49,0.033]
[1741268832356,73.00604385,147.5,147.49,0.033]
[1741268833851,54.35639499,147.51,147.49,0.033]
[1741268834046,54.35639499,147.54,147.49,0.033]
[1741268834446,73.00604385,147.53,147.49,0.033]
[1741268834848,54.35639499,147.55,147.49,0.033]
[1741268835048,54.35639499,147.57,147.51,0.14216157]
[1741268835357,54.35639499,147.57,147.52,6.7787]
[1741268835553,54.35639499,147.54,147.49,312.033]
[1741268835773,3.05992559,147.67,147.5,0.14216157]
[1741268836064,54.35639499,147.55,147.5,0.14216157]
[1741268836247,54.35639499,147.56,147.5,0.14216157]
[1741268836871,1.05992559,147.67,147.52,0.14216157]
[1741268837039,1.05992559,147.67,147.52,54.49855656]
[1741268837368,1.05992559,147.67,147.58,0.14216157]
[1741268837369,54.35639499,147.63,147.58,0.14216157]
[1741268837549,54.35639499,147.64,147.58,54.49855656]
[1741268837749,54.35639499,147.64,147.58,0.14216157]
[1741268837944,18.64964886,147.69,147.58,0.14216157]
[1741268838160,54.35639499,147.63,147.58,0.14216157]
[1741268838377,54.35639499,147.59,147.53,61.13459499]
[1741268838683,54.35639499,147.59,147.54,312.14216157]
[1741268838885,33.40916226,147.72,147.54,312.14216157]
[1741268838886,1.05992559,147.67,147.56,54.49855656]
[1741268839045,1.05992559,147.67,147.55,0.14216157]
[1741268839363,2.0,147.79,147.53,23.86606157]
[1741268839364,54.35639499,147.65,147.61,0.14216157]
[1741268840055,54.35639499,147.66,147.61,0.14216157]
[1741268840364,1.05992559,147.77,147.61,54.49855656]
[1741268840665,54.35639499,147.68,147.63,0.14216157]
[1741268840867,54.35639499,147.75,147.67,54.49855656]
[1741268841071,1.05992559,147.8,147.7,0.14216157]
[1741268841247,54.35639499,147.76,147.7,0.14216157]
[1741268841566,54.35639499,147.75,147.7,6.91226157]
[1741268841764,54.35639499,147.76,147.7,6.91226157]
[1741268841951,54.35639499,147.73,147.68,6.91346157]
[1741268842155,54.35639499,147.69,147.68,0.14216157]
[1741268842358,54.35639499,147.69,147.66,0.14216157]
[1741268842575,54.35639499,147.68,147.62,54.35639499]
[1741268842750,2.0,147.43,147.42,0.033]
[1741268843143,56.35639499,147.43,147.42,0.033]
[1741268844081,2.0,147.43,147.42,0.033]
[1741268844270,56.35639499,147.43,147.42,0.033]
[1741268845274,56.35639499,147.43,147.42,312.033]
[1741268845770,54.35639499,147.43,147.42,312.17516157]
[1741268845966,18.9669,147.5,147.43,0.14216157]
[1741268846168,2.0,147.5,147.45,0.28432314]
[1741268846476,2.0,147.56,147.47,0.28432314]
[1741268846677,2.0,147.56,147.49,0.14216157]
[1741268846865,2.0,147.56,147.5,0.14216157]
[1741268847179,2.0,147.56,147.5,0.28432314]
[1741268847355,2.0,147.54,147.5,0.28432314]
[1741268847554,8.08803047,147.58,147.52,0.28432314]
[1741268847874,2.0,147.56,147.54,0.14216157]
[1741268848067,8.08803047,147.58,147.54,0.14216157]
[1741268848068,10.08803047,147.58,147.54,0.14216157]
[1741268848261,2.0,147.61,147.53,0.28432314]
[1741268848657,2.0,147.6,147.53,0.28432314]
[1741268848857,2.0,147.61,147.53,0.28432314]
[1741268849060,54.35639499,147.57,147.53,0.28432314]
[1741268849376,54.35639499,147.6,147.54,54.49855656]
[1741268849577,2.0,147.63,147.56,0.28432314]
[1741268849779,2.0,147.65,147.56,1.3579026]
[1741268849988,2.0,147.64,147.56,1.3579026]
[1741268850385,2.0,147.66,147.56,1.3579026]
[1741268850792,56.35639499,147.66,147.6,0.14216157]
[1741268851177,2.0,147.67,147.62,0.14216157]
[1741268851493,2.0,147.68,147.63,54.49855656]
[1741268851663,2.0,147.67,147.65,0.14216157]
[1741268852298,2.0,147.66,147.65,0.14216157]
[1741268852503,2.0,147.63,147.57,0.14216157]
[1741268852795,2.0,147.63,147.42,0.033]
[1741268852796,2.0,147.43,147.42,0.033]
[1741268853300,2.0,147.46,147.42,0.033]
[1741268853469,2.0,147.45,147.42,0.033]
[1741268853669,2.0,147.46,147.42,0.033]
[1741268853870,2.0,147.45,147.42,0.033]
[1741268854093,2.0,147.46,147.42,0.033]
[1741268854502,2.0,147.53,147.45,54.35639499]
[1741268854672,54.35639499,147.56,147.42,54.38939499]
[1741268854673,2.0,147.5,147.49,0.14216157]
[1741268854876,2.0,147.52,147.49,0.14216157]
[1741268855075,7.7622,147.65,147.49,0.14216157]
[1741268855076,2.0,147.54,147.52,0.14216157]
[1741268855706,2.0,147.57,147.47,0.28432314]
[1741268855870,2.0,147.53,147.52,0.033]
[1741268856281,56.35639499,147.53,147.52,0.033]
[1741268856695,18.79181043,147.6,147.57,7.42857708]
[1741268856894,1.77651497,147.59,147.57,7.42857708]
[1741268857101,1.80651497,147.63,147.58,0.14216157]
[1741268857604,0.03,147.63,147.58,0.14216157]
[1741268858303,54.35639499,147.59,147.53,0.14216157]
[1741268858506,54.35639499,147.59,147.42,33.55457725]
[1741268858507,0.14216157,147.53,147.42,33.55457725]
[1741268858735,0.14216157,147.53,147.47,4.95862329]
[1741268858736,0.14216157,147.51,147.47,4.95862329]
[1741268859002,1.78049843,147.5,147.47,4.95862329]
[1741268859673,18.64964886,147.49,147.47,4.95862329]
[1741268859870,74.78669541,147.48,147.47,4.95862329]
[1741268860413,18.64964886,147.47,147.42,0.033]
[1741268860594,73.00604385,147.43,147.42,0.033]
[1741268860790,54.35639499,147.43,147.42,0.033]
[1741268862219,54.35639499,147.43,147.42,0.17516157]
[1741268862996,219.57648784,147.43,147.42,0.17516157]
[1741268863403,165.22009285,147.43,147.42,0.17516157]
[1741268863616,219.57648784,147.43,147.42,0.17516157]
[1741268863926,219.5414342,147.43,147.42,0.17516157]
[1741268864598,219.5414342,147.43,147.42,0.033]
[1741268864828,219.5414342,147.43,147.42,0.17516157]
[1741268865604,219.5414342,147.43,147.42,0.14216157]
[1741268868334,219.5414342,147.43,147.41,104.13784863]
[1741268868628,54.35639499,147.42,147.41,104.2800102]
[1741268868806,54.35639499,147.42,147.41,416.2800102]
[1741268870217,108.71278998,147.42,147.41,416.13784863]
[1741268870419,108.71278998,147.42,147.41,104.13784863]
[1741268870638,54.35639499,147.42,147.41,104.13784863]
[1741268870821,68.12473605,147.42,147.41,104.3130102]
[1741268871017,73.01800414,147.42,147.41,104.3130102]
[1741268871227,127.37439913,147.42,147.41,104.17084863]
[1741268871425,73.01800414,147.42,147.41,104.17084863]
[1741268871638,73.01800414,147.42,147.41,104.3130102]
[1741268872049,18.66160915,147.42,147.41,104.3130102]
[1741268872337,73.01800414,147.42,147.41,104.3130102]
[1741268872535,94.50859815,147.43,147.42,0.28432314]
[1741268872721,166.51054965,147.48,147.44,0.28432314]
[1741268872928,132.24424965,147.48,147.47,54.64071813]
[1741268873115,57.93594965,147.48,147.47,54.64071813]
[1741268873536,23.84584965,147.48,147.47,366.64071813]
[1741268873927,8.15544682,147.49,147.47,366.64071813]
[1741268873928,146.00476555,147.49,147.48,0.28432314]
[1741268874126,146.00476555,147.49,147.48,54.64071813]
[1741268874525,111.73576555,147.49,147.48,54.64071813]
[1741268874730,70.13186555,147.49,147.48,73.29036699]
[1741268874919,0.03,147.63,147.5,0.28432314]
[1741268875119,0.03,147.63,147.49,18.64964886]
[1741268875120,54.35639499,147.6,147.52,0.14216157]
[1741268875343,54.35639499,147.6,147.55,0.14216157]
[1741268876439,117.16596228,147.61,147.56,0.14216157]
[1741268876648,62.80956729,147.61,147.58,0.14216157]
[1741268877142,62.80956729,147.61,147.58,312.14216157]
[1741268877143,117.16596228,147.61,147.58,312.14216157]
[1741268877632,62.80956729,147.61,147.58,312.14216157]
[1741268879929,62.80956729,147.61,147.58,366.49855656]
[1741268880643,62.80956729,147.61,147.59,0.14216157]
[1741268881739,62.80956729,147.61,147.58,54.49855656]
[1741268882044,0.14216157,147.58,147.42,6.7833]
[1741268882258,54.35639499,147.53,147.46,54.35639499]
[1741268882460,54.35639499,147.52,147.45,54.35639499]
[1741268882742,54.35639499,147.52,147.42,23.7416]
[1741268882946,54.35639499,147.52,147.46,0.14216157]
[1741268883149,20.21065333,147.58,147.45,54.35639499]
[1741268883371,54.35639499,147.52,147.45,61.13809499]
[1741268884229,54.35639499,147.53,147.46,54.49855656]
[1741268884637,54.35639499,147.53,147.5,0.14216157]
[1741268884927,54.35639499,147.54,147.5,0.14216157]
[1741268885135,54.35639499,147.53,147.47,0.14216157]
[1741268885547,1.4188429,147.58,147.45,54.35639499]
[1741268885735,54.35639499,147.52,147.45,54.35639499]
[1741268885947,54.35639499,147.53,147.45,54.35639499]
[1741268886145,54.35639499,147.53,147.46,54.35639499]
[1741268886365,54.35639499,147.54,147.47,0.14216157]
[1741268886661,54.35639499,147.55,147.49,0.14216157]
[1741268886829,55.77523789,147.58,147.51,0.14216157]
[1741268887028,54.35639499,147.58,147.52,0.14216157]
[1741268887224,54.35639499,147.57,147.52,0.14216157]
[1741268887450,1.4188429,147.6,147.52,0.14216157]
[1741268887629,1.4188429,147.59,147.48,0.14216157]
[1741268887954,54.35639499,147.56,147.5,0.14216157]
[1741268888260,54.35639499,147.56,147.53,0.14216157]
[1741268888460,62.80956729,147.61,147.53,0.14216157]
[1741268888461,1.4188429,147.6,147.53,0.14216157]
[1741268888778,54.35639499,147.58,147.52,0.14216157]
[1741268889930,54.35639499,147.56,147.49,54.35639499]
[1741268890153,54.35639499,147.54,147.49,0.14216157]
[1741268890469,54.35639499,147.54,147.47,54.35639499]
[1741268891166,54.35639499,147.54,147.48,0.14216157]
[1741268891366,54.35639499,147.57,147.5,54.35639499]
[1741268891574,55.77523789,147.58,147.52,0.14216157]
[1741268891776,1.4188429,147.6,147.52,366.49855656]
[1741268891996,54.35639499,147.59,147.53,0.14216157]
[1741268892282,4.90927537,147.59,147.53,61.27675656]
[1741268892689,4.90927537,147.59,147.55,0.14216157]
[1741268892870,59.26567036,147.59,147.55,0.14216157]
[1741268893271,59.26567036,147.59,147.53,0.14216157]
[1741268893488,54.35639499,147.59,147.53,0.14216157]
[1741268893817,55.77523789,147.6,147.53,54.49855656]
[1741268893970,54.35639499,147.6,147.53,54.49855656]
[1741268894483,54.35639499,147.6,147.53,61.27665656]
[1741268894667,118.58480518,147.61,147.55,0.14216157]
[1741268895181,118.58480518,147.61,147.58,0.14216157]
[1741268895588,64.22841019,147.61,147.58,0.14216157]
[1741268895793,62.80956729,147.61,147.56,0.14216157]
[1741268895965,62.80956729,147.61,147.56,54.49855656]
[1741268896161,62.80956729,147.61,147.55,6.7771]
[1741268896162,62.80956729,147.61,147.58,0.14216157]
[1741268896596,62.80956729,147.61,147.55,6.7771]
[1741268896597,62.80956729,147.61,147.6,0.14216157]
[1741268897385,62.80956729,147.61,147.6,54.49855656]
[1741268897782,62.80956729,147.61,147.6,61.41571813]
[1741268898379,62.80956729,147.61,147.6,61.27355656]
[1741268898892,38.87329882,147.61,147.6,373.27355656]
[1741268899082,38.87329882,147.61,147.6,373.41571813]
[1741268899873,0.20429882,147.61,147.6,373.41571813]
[1741268900069,9.882e-05,147.62,147.61,0.14216157]
[1741268900290,9.882e-05,147.62,147.61,54.49855656]
[1741268900765,9.882e-05,147.62,147.61,56.06253493]
[1741268902104,9.882e-05,147.63,147.61,62.83713493]
[1741268902271,9.882e-05,147.63,147.62,54.49855656]
[1741268902671,9.882e-05,147.63,147.62,73.29036699]
[1741268903277,0.03,147.71,147.63,0.14216157]
[1741268903504,0.03,147.71,147.69,0.14216157]
[1741268903824,0.03,147.71,147.7,54.49855656]
[1741268904007,0.03,147.71,147.7,61.26895656]
[1741268904705,0.03,147.71,147.7,6.91256157]
[1741268904914,0.03,147.71,147.7,61.26895656]
[1741268905121,0.03,147.71,147.7,0.14216157]
[1741268905523,0.03,147.71,147.7,61.26895656]
[1741268906104,0.03,147.71,147.7,0.14216157]
[1741268906614,0.03,147.71,147.7,312.14216157]
[1741268908113,0.03,147.71,147.7,318.91256157]
[1741268908608,0.03,147.71,147.7,312.14216157]
[1741268908914,0.03,147.71,147.7,318.91256157]
[1741268909794,0.03,147.71,147.7,373.26895656]
[1741268910815,2.0,147.65,147.64,10.50839041]
[1741268910999,8.0519,147.59,147.53,5.70339245]
[1741268911204,8.0519,147.59,147.53,9.245e-05]
[1741268911393,54.35639499,147.54,147.49,3.50625912]
[1741268911603,54.35639499,147.51,147.49,0.033]
[1741268911905,6.7796,147.5,147.49,0.033]
[1741268912718,18.79181043,147.49,147.41,104.17084863]
[1741268912923,54.35639499,147.45,147.41,104.17084863]
[1741268914022,121.40894413,147.45,147.41,104.17084863]
[1741268914230,108.71278998,147.42,147.38,32.14735387]
[1741268914416,54.35639499,147.39,147.37,124.99841836]
[1741268914731,54.35639499,147.38,147.37,70.10971997]
[1741268916504,54.35639499,147.38,147.37,70.25188154]
[1741268916704,54.35639499,147.42,147.38,0.14216157]
[1741268916909,54.35639499,147.39,147.38,0.14216157]
[1741268917118,54.35639499,147.4,147.38,0.14216157]
[1741268917298,54.35639499,147.39,147.37,70.10971997]
[1741268917626,54.35639499,147.39,147.38,0.14216157]
[1741268918126,206.80115894,147.39,147.38,0.14216157]
[1741268921028,206.80115894,147.39,147.37,70.14271997]
[1741268921235,54.35639499,147.38,147.37,70.14271997]
[1741268921435,152.44476395,147.39,147.37,70.28488154]
[1741268921611,206.80115894,147.39,147.38,6.92726157]
[1741268922011,206.80115894,147.39,147.38,0.14216157]
[1741268922615,206.80115894,147.39,147.37,70.14271997]
[1741268922833,54.35639499,147.38,147.37,70.14271997]
[1741268923029,54.35639499,147.38,147.37,70.28488154]
[1741268923541,54.35639499,147.38,147.37,77.07048154]
[1741268923736,54.35639499,147.38,147.37,70.28488154]
[1741268926309,54.35639499,147.38,147.37,70.14271997]
[1741268926631,54.35639499,147.38,147.37,70.28488154]
[1741268926937,54.35639499,147.38,147.37,70.14271997]
[1741268927128,55.77523789,147.38,147.34,0.033]
[1741268927317,54.35639499,147.35,147.32,152.58058808]
[1741268927525,54.35639499,147.33,147.32,152.72274965]
[1741268927734,54.35639499,147.34,147.33,0.14216157]
[1741268927936,54.35639499,147.34,147.33,312.14216157]
[1741268928126,54.35639499,147.34,147.33,0.14216157]
[1741268928437,54.35639499,147.35,147.33,0.14216157]
[1741268928625,54.35639499,147.36,147.33,6.92956157]
[1741268928834,159.22956395,147.39,147.33,6.92956157]
[1741268929138,50.81492131,147.34,147.33,318.92956157]
[1741268930934,50.81492131,147.34,147.33,6.92956157]
[1741268931128,50.81492131,147.34,147.33,61.42811813]
[1741268931838,50.81492131,147.34,147.33,241.67776699]
[1741268932034,50.81492131,147.34,147.33,223.02811813]
[1741268932216,38.96848668,147.34,147.33,223.02811813]
[1741268933445,38.96848668,147.34,147.33,199.41492381]
[1741268933742,38.96848668,147.34,147.33,216.24071813]
[1741268933942,48.16202852,147.34,147.33,546.89036699]
[1741268934130,48.16202852,147.34,147.33,499.66016467]
[1741268934839,48.16202852,147.34,147.33,506.44756467]
[1741268935036,48.16202852,147.34,147.33,487.79791581]
[1741268935241,48.16202852,147.34,147.33,440.57248492]
[1741268936047,48.16202852,147.34,147.33,459.22213378]
[1741268936242,48.16202852,147.34,147.33,540.7359822]
[1741268936443,48.16202852,147.34,147.33,522.08633334]
[1741268938039,48.16202852,147.34,147.33,540.7359822]
[1741268938431,48.16202852,147.34,147.33,574.40897711]
[1741268938953,48.16202852,147.34,147.33,574.38897711]
[1741268939539,48.16202852,147.34,147.33,587.3507619]
[1741268940545,94.35741154,147.34,147.33,587.3507619]
[1741268941656,94.35741154,147.34,147.33,568.70111304]
[1741268941850,94.35741154,147.34,147.33,568.55895147]
[1741268942031,94.35741154,147.34,147.33,568.70111304]
[1741268942856,94.35741154,147.34,147.33,587.3507619]
[1741268943056,94.35741154,147.34,147.33,535.02811813]
[1741268943759,55.38892486,147.34,147.33,535.02811813]
[1741268945252,55.38892486,147.34,147.33,553.67776699]
[1741268946041,55.38892486,147.34,147.33,535.02811813]
[1741268946241,97.00047265,147.34,147.33,535.02811813]
[1741268946435,97.00047265,147.34,147.33,223.02811813]
[1741268946844,97.00047265,147.34,147.33,168.67172314]
[1741268947048,97.00047265,147.34,147.33,161.6]
[1741268947440,97.00047265,147.34,147.33,535.02811813]
[1741268947945,97.00047265,147.34,147.33,480.67172314]
[1741268948157,97.00047265,147.34,147.33,473.74216157]
[1741268948555,97.00047265,147.34,147.33,480.52956157]
[1741268948879,97.00047265,147.34,147.33,499.321372]
[1741268949158,97.00047265,147.34,147.33,437.92158142]
[1741268949348,97.00047265,147.34,147.33,471.32075383]
[1741268949747,87.80693081,147.34,147.33,424.09569682]
[1741268950158,87.80693081,147.34,147.33,372.04687555]
[1741268950751,87.80693081,147.34,147.33,371.76255241]
[1741268950960,87.80693081,147.34,147.33,371.93771398]
[1741268951142,87.83693081,147.34,147.33,371.93771398]
[1741268951542,46.22538302,147.34,147.33,371.93771398]
[1741268952370,46.22538302,147.34,147.33,424.12869682]
[1741268955267,83.24560086,147.4,147.34,79.603972]
[1741268955468,20.80489274,147.44,147.4,0.28432314]
[1741268955675,0.03,147.5,147.47,0.28432314]
[1741268955858,0.03,147.5,147.48,52.33314441]
[1741268956773,0.03,147.5,147.48,52.26414515]
[1741268956973,0.03,147.5,147.49,18.79181043]
[1741268957150,0.03,147.5,147.49,33.61449629]
[1741268957349,0.03,147.5,147.49,0.28432314]
[1741268957643,0.03,147.5,147.49,25.714072]
[1741268957843,8.0934,147.6,147.5,0.14216157]
[1741268958073,8.0934,147.6,147.52,18.933972]
[1741268958260,8.0934,147.6,147.52,0.28432314]
[1741268958577,8.0934,147.6,147.59,312.14216157]
[1741268959573,8.0934,147.6,147.59,0.14216157]
[1741268959753,54.15407894,147.64,147.58,6.7759]
[1741268959957,54.15407894,147.65,147.59,0.14216157]
[1741268960271,54.15407894,147.64,147.59,0.14216157]
[1741268960472,54.15407894,147.64,147.58,0.14216157]
[1741268960670,54.15407894,147.65,147.58,61.07214051]
[1741268960878,54.15407894,147.65,147.58,54.29624051]
[1741268961069,54.15407894,147.6,147.52,0.14216157]
[1741268961252,54.15407894,147.6,147.55,0.14216157]
[1741268961676,54.15407894,147.62,147.57,0.14216157]
[1741268961878,1.4188429,147.64,147.56,54.29624051]
[1741268961879,8.1920429,147.64,147.56,54.29624051]
[1741268962186,13.7115429,147.66,147.59,0.14216157]
[1741268962570,54.15407894,147.64,147.61,0.14216157]
[1741268962879,54.15407894,147.63,147.61,0.14216157]
[1741268963082,54.15407894,147.62,147.55,54.15407894]
[1741268963286,54.15407894,147.6,147.54,54.15407894]
[1741268963470,54.15407894,147.6,147.55,0.14216157]
[1741268963653,54.15407894,147.61,147.55,0.14216157]
[1741268963863,54.15407894,147.61,147.53,6.7782]
[1741268963864,54.15407894,147.57,147.51,54.15407894]
[1741268964872,54.15407894,147.56,147.5,54.15407894]
[1741268965075,54.15407894,147.55,147.49,54.15407894]
[1741268965259,54.15407894,147.55,147.5,0.14216157]
[1741268965460,54.15407894,147.55,147.49,54.15407894]
[1741268965659,54.15407894,147.56,147.5,0.14216157]
[1741268965861,54.15407894,147.57,147.52,0.14216157]
[1741268966063,60.92957894,147.59,147.53,366.29624051]
[1741268966295,6.7755,147.59,147.53,366.29624051]
[1741268966459,60.92957894,147.59,147.53,54.29624051]
[1741268967170,6.7755,147.59,147.53,54.29624051]
[1741268967382,60.92957894,147.59,147.53,0.14216157]
[1741268967690,1.4188429,147.6,147.55,0.14216157]
[1741268967691,54.15407894,147.6,147.55,0.14216157]
[1741268967888,54.15407894,147.62,147.57,0.14216157]
[1741268968088,54.15407894,147.64,147.58,54.29624051]
[1741268968258,54.15407894,147.63,147.58,0.14216157]
[1741268968918,1.4188429,147.65,147.61,54.15407894]
[1741268969088,8.3085,147.67,147.64,0.14216157]
[1741268969492,8.3085,147.67,147.66,312.14216157]
[1741268970386,62.46257894,147.67,147.66,312.14216157]
[1741268970583,8.3085,147.67,147.66,312.14216157]
[1741268970786,54.15407894,147.71,147.66,312.14216157]
[1741268970964,54.15407894,147.72,147.67,0.14216157]
[1741268971164,54.15407894,147.7,147.67,0.14216157]
[1741268971603,54.15407894,147.68,147.67,0.14216157]
[1741268972580,60.92507894,147.69,147.64,0.14216157]
[1741268972785,60.92467894,147.7,147.64,0.14216157]
[1741268973163,54.15407894,147.7,147.64,54.29624051]
[1741268973474,60.92457894,147.7,147.64,54.29624051]
[1741268973782,60.92457894,147.7,147.64,61.06944051]
[1741268973983,6.7705,147.7,147.64,61.06944051]
[1741268974183,55.57292184,147.72,147.66,0.14216157]
[1741268974892,55.57292184,147.72,147.67,0.14216157]
[1741268975603,55.57292184,147.72,147.7,0.14216157]
[1741268975894,54.15407894,147.73,147.7,0.14216157]
[1741268976094,9.3471429,147.74,147.68,0.14216157]
[1741268976409,62.08237894,147.74,147.68,0.14216157]
[1741268976592,61.95398619,147.74,147.68,0.14216157]
[1741268977291,61.95398619,147.74,147.68,54.16784776]
[1741268977498,41.17308319,147.74,147.7,0.14216157]
[1741268977698,7.9283,147.74,147.7,0.14216157]
[1741268977887,33.24478319,147.75,147.7,0.14216157]
[1741268978090,0.03,147.76,147.7,0.14216157]
[1741268978286,33.24478319,147.75,147.7,0.14216157]
[1741268978887,33.27478319,147.76,147.7,0.14216157]
[1741268979073,33.27478319,147.76,147.75,312.14216157]
[1741268979598,0.03,147.76,147.75,312.14216157]
[1741268979980,33.24478319,147.77,147.75,312.14216157]
[1741268980380,33.24478319,147.77,147.75,0.14216157]
[1741268980780,33.20486041,147.77,147.75,0.14216157]
[1741268981394,33.24478319,147.79,147.76,0.14216157]
[1741268982597,33.24478319,147.78,147.76,0.14216157]
[1741268982790,7.7695,147.81,147.74,6.91076157]
[1741268983106,33.24478319,147.8,147.74,6.91076157]
[1741268983307,33.24478319,147.8,147.79,312.14216157]
[1741268983934,33.24478319,147.81,147.8,0.14216157]
[1741268984115,40.01018319,147.81,147.8,0.14216157]
[1741268984806,6.7654,147.81,147.75,6.91026157]
[1741268984998,33.24478319,147.81,147.75,6.91026157]
[1741268985897,33.24478319,147.8,147.75,6.91026157]
[1741268986091,0.03,147.82,147.75,40.15504476]
[1741268986291,0.03,147.82,147.77,0.14216157]
[1741268986503,0.03,147.82,147.77,33.38694476]